[Event "1st Sakatam Open 2024"]
[Site "Guwahati"]
[Date "2024.03.27"]
[Round "9.4"]
[White "Subhayan Kundu"]
[Black "Adhiraj Mitra"]
[Result "1/2-1/2"]
[ECO "C54"]
[WhiteElo "2353"]
[BlackElo "1840"]
[Annotator "RC"]
[PlyCount "119"]
[EventDate "2024.03.24"]
[EventType "swiss"]
[EventCountry "IND"]
[SourceTitle "playchess.com"]
[Source "ChessBase"]
[SourceQuality "1"]
[TimeControl "5400+30"]

1. e4 {[%emt 0:01:08]} e5 {[%emt 0:00:03]} 2. Nf3 {[%emt 0:00:32]} Nc6 {[%emt 0:00:02]} 3. Bc4 {[%emt 0:00:15]} Bc5 {[%emt 0:00:04]} 4. c3 {[%emt 0:00:12]} Nf6 {[%emt 0:00:04]} 5. d4 {[%emt 0:01:01]} exd4 {[%emt 0:00:03]} 6. b4 {[%emt 0:00:16]} Bb6 {[%emt 0:00:07]} 7. e5 {[%emt 0:00:41]} d5 {[%emt 0:00:13]} 8. exf6 {[%emt 0:00:25]} dxc4 {[%emt 0:00:07]} 9. Qe2+ {[%emt 0:00:11]} Be6 {[%emt 0:00:45]} 10. b5 {[%emt 0:00:11]} Nb4 {[%emt 0:20:14]} 11. cxb4 {[%emt 0:04:31]} gxf6 {[%emt 0:01:15]} 12. O-O {[%emt 0:02:35]} Qd5 {[%emt 0:08:22]} 13. a4 {[%emt 0:01:00]} d3 {[%emt 0:00:50]} 14. Qd1 {[%emt 0:04:45]} Bd4 {[%emt 0:03:10]} 15. Nxd4 {[%emt 0:00:08]} Qxd4 {[%emt 0:00:01]} 16. Ra3 {[%emt 0:00:13]} Rg8 {[%emt 0:00:43]} 17. Nc3 {[%emt 0:03:34]} O-O-O {[%emt 0:02:23]} 18. Be3 {[%emt 0:03:27]} Qh4 {[%emt 0:03:59]} 19. f3 {[%emt 0:09:09]} Bh3 {[%emt 0:03:19]} 20. Ra2 {[%emt 0:02:35]} d2 {[%emt 0:00:23]} 21. Rxd2 {[%emt 0:00:05]} Rxd2 {[%emt 0:00:32]} 22. Qxd2 {[%emt 0:00:02]} Rxg2+ {[%emt 0:00:40]} 23. Qxg2 {[%emt 0:00:01]} Bxg2 {[%emt 0:00:10]} 24. Kxg2 {[%emt 0:00:01]} Qh5 {[%emt 0:00:14]} 25. Rf2 {[%emt 0:33:15]} Qg6+ {[%emt 0:00:30]} 26. Kh1 {[%emt 0:00:16]} Qd3 {[%emt 0:00:57]} 27. Bd2 {[%emt 0:00:06]} f5 {[%emt 0:00:26]} 28. Kg2 {[%emt 0:00:56]} b6 {[%emt 0:02:21]} 29. a5 {[%emt 0:02:47]} bxa5 {[%emt 0:01:41]} 30. bxa5 {[%emt 0:00:02]} c6 {[%emt 0:01:25]} 31. Be1 {[%emt 0:05:49]} cxb5 {[%emt 0:00:19]} 32. Rd2 {[%emt 0:02:13]} Qe3 {[%emt 0:00:08]} 33. Re2 {[%emt 0:00:06]} Qg5+ {[%emt 0:00:18]} 34. Kf1 {[%emt 0:00:18]} Qh5 {[%emt 0:01:14]} 35. Nxb5 {[%emt 0:02:10]} Qxf3+ {[%emt 0:00:18]} 36. Bf2 {[%emt 0:00:30]} Qh3+ {[%emt 0:01:44]} 37. Ke1 {[%emt 0:00:47]} Qxh2 {[%emt 0:00:41]} 38. Kd2 {[%emt 0:08:22]} Qh6+ {[%emt 0:00:32]} 39. Kc3 {[%emt 0:00:58]} Qc1+ {[%emt 0:01:18]} 40. Rc2 {[%emt 0:00:29]} Qa1+ {[%emt 0:00:14]} 41. Kxc4 {[%emt 0:00:14]} Qxa5 {[%emt 0:02:00]} 42. Nxa7+ {[%emt 0:00:54]} Kd7 {[%emt 0:00:12]} 43. Bd4 {[%emt 0:00:37]} Qa4+ {[%emt 0:00:52]} 44. Kd3 {[%emt 0:00:07]} Qb3+ {[%emt 0:00:17]} 45. Rc3 {[%emt 0:00:11]} Qb1+ {[%emt 0:00:51]} 46. Kc4 {[%emt 0:00:13]} f4 {[%emt 0:00:31]} 47. Nb5 {[%emt 0:00:55]} Ke6 {[%emt 0:00:24]} 48. Nc7+ {[%emt 0:00:44]} Kf5 {[%emt 0:00:05]} 49. Nd5 {[%emt 0:00:08]} Qa2+ {[%emt 0:00:41]} 50. Kc5 {[%emt 0:00:45]} Qe2 {[%emt 0:01:16]} 51. Rh3 {[%emt 0:01:02]} h5 {[%emt 0:01:18]} 52. Rh4 {[%emt 0:01:02]} Qf3 {[%emt 0:00:05]} 53. Kd6 {[%emt 0:01:57]} Qa3+ {[%emt 0:00:18]} 54. Bc5 {[%emt 0:00:58]} Qa6+ {[%emt 0:00:14]} 55. Bb6 {[%emt 0:00:08]} Qa3+ {[%emt 0:00:33]} 56. Bc5 {[%emt 0:00:07]} Qf3 {[%emt 0:00:12]} 57. Bd4 {[%emt 0:01:13]} Qe4 {[%emt 0:00:12]} 58. Rxf4+ {[%emt 0:04:00]} Qxf4+ {[%emt 0:00:08]} 59. Nxf4 {[%emt 0:00:05]} Kxf4 {[%emt 0:00:04]} 60. Bf6 {[%emt 0:00:07]} 1/2-1/2

[Event "1st Sakatam Open 2024"]
[Site "Guwahati"]
[Date "2024.03.27"]
[Round "9.5"]
[White "Srijon Saha"]
[Black "Arpan Das"]
[Result "1-0"]
[ECO "A28"]
[WhiteElo "1812"]
[BlackElo "2374"]
[Annotator "RC"]
[PlyCount "124"]
[EventDate "2024.03.24"]
[EventType "swiss"]
[EventCountry "IND"]
[SourceTitle "playchess.com"]
[Source "ChessBase"]
[SourceQuality "1"]
[TimeControl "5400+30"]

1. c4 {[%emt 0:00:04]} e5 {[%emt 0:09:21]} 2. Nc3 {[%emt 0:00:29]} Nf6 {[%emt 0:00:08]} 3. Nf3 {[%emt 0:00:24]} Nc6 {[%emt 0:00:09]} 4. e4 {[%emt 0:03:13]} Bb4 {[%emt 0:00:13]} 5. d3 {[%emt 0:00:17]} d6 {[%emt 0:00:17]} 6. a3 {[%emt 0:00:12]} Bc5 {[%emt 0:00:07]} 7. b4 {[%emt 0:02:32]} Bb6 {[%emt 0:00:37]} 8. Na4 {[%emt 0:00:11]} Bd4 {[%emt 0:01:57]} 9. Nxd4 {[%emt 0:02:09]} exd4 {[%emt 0:00:25]} 10. Bb2 {[%emt 0:04:47]} a6 {[%emt 0:00:15]} 11. b5 {[%emt 0:01:20]} axb5 {[%emt 0:00:04]} 12. cxb5 {[%emt 0:00:04]} Na5 {[%emt 0:00:02]} 13. Bxd4 {[%emt 0:00:53]} Be6 {[%emt 0:00:37]} 14. Rb1 {[%emt 0:05:38]} Nb3 {[%emt 0:00:42]} 15. Rxb3 {[%emt 0:02:08]} Rxa4 {[%emt 0:00:05]} 16. Rb4 {[%emt 0:00:24]} Rxa3 {[%emt 0:00:06]} 17. Be2 {[%emt 0:01:45]} O-O {[%emt 0:00:40]} 18. O-O {[%emt 0:00:30]} c5 {[%emt 0:03:11]} 19. bxc6 {[%emt 0:00:02]} bxc6 {[%emt 0:00:03]} 20. Rb2 {[%emt 0:01:52]} c5 {[%emt 0:00:33]} 21. Be3 {[%emt 0:00:08]} Qa5 {[%emt 0:02:46]} 22. Bd2 {[%emt 0:04:43]} Qa7 {[%emt 0:00:12]} 23. Bg5 {[%emt 0:00:56]} Ra8 {[%emt 0:02:38]} 24. Bxf6 {[%emt 0:10:14]} gxf6 {[%emt 0:00:25]} 25. h3 {[%emt 0:00:22]} Qa5 {[%emt 0:00:28]} 26. Qd2 {[%emt 0:01:20]} Qa4 {[%emt 0:00:26]} 27. Qf4 {[%emt 0:05:51]} Qd4 {[%emt 0:00:17]} 28. Rb6 {[%emt 0:00:15]} Qe5 {[%emt 0:07:11]} 29. Qxe5 {[%emt 0:00:53]} dxe5 {[%emt 0:00:05]} 30. Rc1 {[%emt 0:02:57]} Ra2 {[%emt 0:00:56]} 31. Bg4 {[%emt 0:00:48]} Bxg4 {[%emt 0:00:25]} 32. hxg4 {[%emt 0:00:53]} Kg7 {[%emt 0:00:07]} 33. Rbb1 {[%emt 0:14:12]} R8a5 {[%emt 0:04:51]} 34. Rb3 {[%emt 0:00:48]} Rd2 {[%emt 0:00:14]} 35. Rbc3 {[%emt 0:01:33]} Raa2 {[%emt 0:00:05]} 36. Rf1 {[%emt 0:00:01]} Kg6 {[%emt 0:00:10]} 37. Rxc5 {[%emt 0:01:15]} Rxd3 {[%emt 0:00:07]} 38. Rcc1 {[%emt 0:02:34]} Rdd2 {[%emt 0:00:24]} 39. Rcd1 {[%emt 0:01:46]} Re2 {[%emt 0:00:22]} 40. Rde1 {[%emt 0:00:16]} Kg5 {[%emt 0:00:34]} 41. Rxe2 {[%emt 0:00:10]} Rxe2 {[%emt 0:00:18]} 42. f3 {[%emt 0:00:21]} Kf4 {[%emt 0:00:37]} 43. Kh2 {[%emt 0:00:14]} Ke3 {[%emt 0:01:33]} 44. Kg3 {[%emt 0:02:47]} Ra2 {[%emt 0:00:10]} 45. Rh1 {[%emt 0:00:16]} Ra7 {[%emt 0:05:38]} 46. Rxh7 {[%emt 0:00:14]} Re7 {[%emt 0:00:05]} 47. Rh8 {[%emt 0:01:33]} Ke2 {[%emt 0:00:06]} 48. Ra8 {[%emt 0:00:37]} Ke3 {[%emt 0:00:05]} 49. Ra2 {[%emt 0:00:31]} Re6 {[%emt 0:04:00]} 50. Ra7 {[%emt 0:00:06]} Rb6 {[%emt 0:00:10]} 51. Rxf7 {[%emt 0:00:14]} Ke2 {[%emt 0:00:10]} 52. Rg7 {[%emt 0:00:28]} Kf1 {[%emt 0:00:27]} 53. Rg6 {[%emt 0:00:06]} Kg1 {[%emt 0:00:39]} 54. g5 {[%emt 0:00:45]} Rb2 {[%emt 0:00:05]} 55. Kg4 {[%emt 0:00:43]} fxg5 {[%emt 0:00:08]} 56. Rxg5 {[%emt 0:00:30]} Kxg2 {[%emt 0:00:16]} 57. Rxe5 {[%emt 0:00:08]} Kf2 {[%emt 0:00:48]} 58. Ra5 {[%emt 0:02:49]} Ke3 {[%emt 0:00:09]} 59. Ra3+ {[%emt 0:00:06]} Kd4 {[%emt 0:00:04]} 60. Ra4+ {[%emt 0:00:42]} Ke3 {[%emt 0:00:20]} 61. e5 {[%emt 0:00:33]} Rg2+ {[%emt 0:00:05]} 62. Kf5 {[%emt 0:00:01]} Kxf3 {[%emt 1:03:22]} 1-0

[Event "1st Sakatam Open 2024"]
[Site "Guwahati"]
[Date "2024.03.27"]
[Round "9.6"]
[White "Amlan Mahanta"]
[Black "Tanmay Rajbongshi"]
[Result "0-1"]
[ECO "D00"]
[WhiteElo "1789"]
[BlackElo "1909"]
[Annotator "RC"]
[PlyCount "190"]
[EventDate "2024.03.24"]
[EventType "swiss"]
[EventCountry "IND"]
[SourceTitle "playchess.com"]
[Source "ChessBase"]
[SourceQuality "1"]
[TimeControl "5400+30"]

1. d4 {[%emt 0:00:14]} Nf6 {[%emt 0:00:07]} 2. Bf4 {[%emt 0:00:17]} e6 {[%emt 0:00:06]} 3. e3 {[%emt 0:00:04]} d5 {[%emt 0:00:04]} 4. Nd2 {[%emt 0:00:41]} Bd6 {[%emt 0:00:07]} 5. Bd3 {[%emt 0:00:55]} O-O {[%emt 0:00:16]} 6. c3 {[%emt 0:02:56]} b6 {[%emt 0:00:22]} 7. Qe2 {[%emt 0:04:08]} Bb7 {[%emt 0:00:52]} 8. Ngf3 {[%emt 0:00:27]} c5 {[%emt 0:00:30]} 9. O-O {[%emt 0:08:42]} a6 {[%emt 0:04:46]} 10. Ne5 {[%emt 0:08:23]} Nc6 {[%emt 0:01:31]} 11. Bg3 {[%emt 0:06:27]} Qc7 {[%emt 0:07:14]} 12. f4 {[%emt 0:08:15]} b5 {[%emt 0:03:21]} 13. Bh4 {[%emt 0:04:57]} Nd7 {[%emt 0:06:52]} 14. g4 {[%emt 0:18:28]} f6 {[%emt 0:02:25]} 15. Nxc6 {[%emt 0:03:17]} Bxc6 {[%emt 0:00:53]} 16. g5 {[%emt 0:03:56]} f5 {[%emt 0:00:17]} 17. Nf3 {[%emt 0:00:36]} g6 {[%emt 0:00:38]} 18. Ne5 {[%emt 0:02:24]} Nxe5 {[%emt 0:00:47]} 19. fxe5 {[%emt 0:01:37]} Be7 {[%emt 0:00:06]} 20. Kh1 {[%emt 0:02:48]} Rab8 {[%emt 0:02:22]} 21. Rg1 {[%emt 0:08:24]} a5 {[%emt 0:01:24]} 22. Be1 {[%emt 0:00:33]} b4 {[%emt 0:01:51]} 23. cxb4 {[%emt 0:02:45]} c4 {[%emt 0:01:14]} 24. Bc2 {[%emt 0:00:40]} axb4 {[%emt 0:00:06]} 25. Rc1 {[%emt 0:00:39]} Qa7 {[%emt 0:04:59]} 26. Bb1 {[%emt 0:00:28]} Bd8 {[%emt 0:02:12]} 27. Qf2 {[%emt 0:03:36]} Bc7 {[%emt 0:03:14]} 28. Qf4 {[%emt 0:00:16]} Ba5 {[%emt 0:01:10]} 29. h4 {[%emt 0:01:25]} Rfc8 {[%emt 0:00:16]} 30. Kh2 {[%emt 0:01:00]} Be8 {[%emt 0:00:11]} 31. Qf2 {[%emt 0:02:43]} c3 {[%emt 0:01:03]} 32. b3 {[%emt 0:00:55]} Bb6 {[%emt 0:00:58]} 33. Rg2 {[%emt 0:00:37]} Rc7 {[%emt 0:01:35]} 34. Bd3 {[%emt 0:01:35]} Qa5 {[%emt 0:01:33]} 35. Qf1 {[%emt 0:00:51]} Ba7 {[%emt 0:01:31]} 36. Bg3 {[%emt 0:00:12]} Bb6 {[%emt 0:02:13]} 37. Rcc2 {[%emt 0:00:19]} Ra7 {[%emt 0:00:18]} 38. Bf4 {[%emt 0:00:21]} Rba8 {[%emt 0:00:37]} 39. Qe2 {[%emt 0:00:21]} Bc7 {[%emt 0:00:20]} 40. Kg3 {[%emt 0:00:19]} Qb6 {[%emt 0:00:08]} 41. Qf1 {[%emt 0:01:12]} Ra3 {[%emt 0:00:14]} 42. Rgf2 {[%emt 0:00:55]} R8a5 {[%emt 0:00:43]} 43. Kh2 {[%emt 0:00:29]} Qa7 {[%emt 0:00:08]} 44. Qe2 {[%emt 0:00:29]} Bb6 {[%emt 0:00:27]} 45. Kg3 {[%emt 0:00:16]} Kf7 {[%emt 0:00:08]} 46. Rh2 {[%emt 0:01:08]} Ke7 {[%emt 0:00:24]} 47. Rg2 {[%emt 0:00:33]} Kd8 {[%emt 0:00:06]} 48. Rh2 {[%emt 0:00:05]} Kc8 {[%emt 0:00:05]} 49. Rg2 {[%emt 0:00:09]} Kb8 {[%emt 0:00:04]} 50. Rh2 {[%emt 0:00:05]} Bd8 {[%emt 0:00:25]} 51. Rg2 {[%emt 0:00:32]} Be7 {[%emt 0:01:06]} 52. Rh2 {[%emt 0:00:19]} Qc7 {[%emt 0:00:23]} 53. Kg2 {[%emt 0:00:38]} Ra7 {[%emt 0:01:06]} 54. Kg1 {[%emt 0:00:58]} Rb7 {[%emt 0:00:07]} 55. Kg2 {[%emt 0:00:23]} Qd8 {[%emt 0:00:10]} 56. Kg1 {[%emt 0:00:05]} Ra5 {[%emt 0:00:30]} 57. Qf2 {[%emt 0:00:26]} Bc6 {[%emt 0:01:09]} 58. Qe2 {[%emt 0:00:29]} Qe8 {[%emt 0:01:15]} 59. Kf1 {[%emt 0:00:21]} Bd8 {[%emt 0:01:43]} 60. Qf2 {[%emt 0:00:30]} Rg7 {[%emt 0:00:49]} 61. Qg2 {[%emt 0:00:34]} Be7 {[%emt 0:00:10]} 62. Qg3 {[%emt 0:00:34]} Bb5 {[%emt 0:01:17]} 63. Be2 {[%emt 0:00:58]} Bxe2+ {[%emt 0:01:09]} 64. Rhxe2 {[%emt 0:00:04]} Qb5 {[%emt 0:00:07]} 65. Kg1 {[%emt 0:00:38]} Qd3 {[%emt 0:00:12]} 66. Qf2 {[%emt 0:00:49]} Ra7 {[%emt 0:01:04]} 67. Qf1 {[%emt 0:00:31]} Qb5 {[%emt 0:00:21]} 68. Rg2 {[%emt 0:00:20]} Qe8 {[%emt 0:00:08]} 69. Qf2 {[%emt 0:00:20]} Rg8 {[%emt 0:00:18]} 70. Kf1 {[%emt 0:00:55]} Qd8 {[%emt 0:00:08]} 71. Qe2 {[%emt 0:00:50]} Rb7 {[%emt 0:00:17]} 72. Qa6 {[%emt 0:00:46]} Rb6 {[%emt 0:00:11]} 73. Qe2 {[%emt 0:00:21]} Ka7 {[%emt 0:00:39]} 74. Rh2 {[%emt 0:00:20]} Rb7 {[%emt 0:00:08]} 75. Qf2 {[%emt 0:00:33]} Kb6 {[%emt 0:00:48]} 76. Rh3 {[%emt 0:01:03]} Rh8 {[%emt 0:00:22]} 77. Qg3 {[%emt 0:00:16]} Qe8 {[%emt 0:00:05]} 78. Rhh2 {[%emt 0:00:30]} Bf8 {[%emt 0:00:17]} 79. Rhg2 {[%emt 0:00:10]} Rg7 {[%emt 0:00:45]} 80. Qf2 {[%emt 0:00:14]} Rgg8 {[%emt 0:00:40]} 81. Rh2 {[%emt 0:00:25]} h6 {[%emt 0:00:40]} 82. Kg1 {[%emt 0:00:54]} Be7 {[%emt 0:00:24]} 83. Qf1 {[%emt 0:01:44]} Qd8 {[%emt 0:00:30]} 84. Rcg2 {[%emt 0:00:25]} hxg5 {[%emt 0:01:43]} 85. Bxg5 {[%emt 0:00:18]} Rh5 {[%emt 0:00:43]} 86. Bxe7 {[%emt 0:00:52]} Qxe7 {[%emt 0:00:01]} 87. Qf4 {[%emt 0:00:03]} g5 {[%emt 0:01:11]} 88. hxg5 {[%emt 0:00:19]} Rhxg5 {[%emt 0:00:04]} 89. Rxg5 {[%emt 0:01:41]} Rxg5+ 90. Kf1 {[%emt 0:00:00]} Qg7 {[%emt 0:00:42]} 91. Qf2 {[%emt 0:00:21]} Qg6 {[%emt 0:00:13]} 92. Rh1 {[%emt 0:00:37]} Rg4 {[%emt 0:00:41]} 93. Qc2 {[%emt 0:00:29]} Rg3 {[%emt 0:00:26]} 94. Qe2 {[%emt 0:00:21]} Qg5 {[%emt 0:00:30]} 95. a4 {[%emt 0:00:39]} bxa3 {[%emt 0:00:18]} 0-1

[Event "1st Sakatam Open 2024"]
[Site "Guwahati"]
[Date "2024.03.27"]
[Round "9.7"]
[White "Kishan Kumar"]
[Black "Mayukh Majumder"]
[Result "1-0"]
[ECO "D31"]
[WhiteElo "1867"]
[BlackElo "1833"]
[Annotator "NA RC"]
[PlyCount "80"]
[EventDate "2024.03.24"]
[EventType "swiss"]
[EventCountry "IND"]
[SourceTitle "playchess.com"]
[Source "ChessBase"]
[SourceQuality "1"]
[TimeControl "5400+30"]

1. d4 {[%emt 0:00:03]} d5 {[%emt 0:02:09]} 2. c4 {[%emt 0:00:01]} e6 {[%emt 0:00:06]} 3. Nc3 {[%emt 0:00:18]} a6 {[%emt 0:00:06]} 4. cxd5 {[%emt 0:00:41]} exd5 {[%emt 0:00:06]} 5. Nf3 {[%emt 0:00:17]} h6 {[%emt 0:00:07]} 6. Bf4 {[%emt 0:01:01]} Nf6 {[%emt 0:00:10]} 7. e3 {[%emt 0:00:34]} Bd6 {[%emt 0:00:55]} 8. Be5 {[%emt 0:03:06]} c6 {[%emt 0:01:32]} 9. Bd3 {[%emt 0:03:15]} O-O {[%emt 0:04:22]} 10. h3 {[%emt 0:02:52]} Qe7 {[%emt 0:06:44]} 11. O-O {[%emt 0:02:40]} Nbd7 {[%emt 0:00:29]} 12. Bxd6 {[%emt 0:01:23]} Qxd6 {[%emt 0:00:06]} 13. Rc1 {[%emt 0:02:20]} Re8 {[%emt 0:03:03]} 14. Qc2 {[%emt 0:03:19]} b6 {[%emt 0:16:59]} 15. Na4 {[%emt 0:01:39]} Bb7 {[%emt 0:00:24]} 16. Rfd1 {[%emt 0:12:36]} Rec8 {[%emt 0:09:11]} 17. Bf5 {[%emt 0:06:52]} Rc7 {[%emt 0:11:24]} 18. Bxd7 {[%emt 0:05:30]} Nxd7 {[%emt 0:00:18]} 19. Ne5 {[%emt 0:00:55]} Nxe5 {[%emt 0:04:21]} 20. dxe5 {[%emt 0:00:23]} Qxe5 {[%emt 0:00:11]} 21. Nxb6 {[%emt 0:00:11]} Rd8 {[%emt 0:00:19]} 22. b4 {[%emt 0:05:54]} a5 {[%emt 0:08:51]} 23. Qc5 {[%emt 0:08:31]} axb4 {[%emt 0:00:49]} 24. Nxd5 {[%emt 0:00:31]} Rdd7 {[%emt 0:01:27]} 25. f4 {[%emt 0:02:19]} cxd5 {[%emt 0:06:20]} 26. fxe5 {[%emt 0:00:17]} Rxc5 {[%emt 0:00:05]} 27. Rxc5 {[%emt 0:00:08]} Re7 {[%emt 0:00:36]} 28. Rd4 {[%emt 0:01:12]} Rxe5 {[%emt 0:00:40]} 29. Rxb4 {[%emt 0:00:12]} Ba6 {[%emt 0:00:01]} 30. e4 {[%emt 0:03:29]} Rxe4 {[%emt 0:00:06]} 31. Rxe4 {[%emt 0:00:09]} dxe4 {[%emt 0:00:02]} 32. a4 {[%emt 0:00:18]} Kf8 {[%emt 0:00:45]} 33. a5 {[%emt 0:00:03]} Ke8 {[%emt 0:00:05]} 34. Rc6 {[%emt 0:00:20]} Bd3 {[%emt 0:00:48]} 35. a6 {[%emt 0:00:13]} Kd7 {[%emt 0:00:03]} 36. a7 {[%emt 0:00:31]} Kxc6 {[%emt 0:00:06]} 37. a8=Q+ {[%emt 0:00:09]} Kd6 {[%emt 0:00:06]} 38. Qf8+ {[%emt 0:00:07]} Ke5 {[%emt 0:00:10]} 39. Qxf7 {[%emt 0:00:19]} Kd4 {[%emt 0:01:09]} 40. Qxg7+ {[%emt 0:00:05]} Kd5 {[%emt 0:00:19]} 1-0

[Event "1st Sakatam Open 2024"]
[Site "Guwahati"]
[Date "2024.03.27"]
[Round "9.8"]
[White "Mishra, Neeraj-Kumar"]
[Black "Shaashvat Gupta"]
[Result "1-0"]
[ECO "A05"]
[WhiteElo "2150"]
[BlackElo "1738"]
[Annotator "RC"]
[PlyCount "79"]
[EventDate "2024.03.24"]
[EventType "swiss"]
[EventCountry "IND"]
[SourceTitle "playchess.com"]
[Source "ChessBase"]
[SourceQuality "1"]
[TimeControl "5400+30"]

1. Nf3 {[%emt 0:02:10]} Nf6 {[%emt 0:00:14]} 2. g3 {[%emt 0:00:11]} g6 {[%emt 0:01:12]} 3. Bg2 {[%emt 0:00:07]} Bg7 {[%emt 0:00:45]} 4. O-O {[%emt 0:00:17]} O-O {[%emt 0:00:48]} 5. Nc3 {[%emt 0:00:08]} c5 {[%emt 0:04:02]} 6. a3 {[%emt 0:01:07]} Nc6 {[%emt 0:01:07]} 7. Rb1 {[%emt 0:00:10]} a5 {[%emt 0:01:28]} 8. d4 {[%emt 0:03:42]} cxd4 {[%emt 0:00:30]} 9. Nxd4 {[%emt 0:00:10]} Nxd4 {[%emt 0:04:56]} 10. Qxd4 {[%emt 0:00:12]} e6 {[%emt 0:00:02]} 11. Qh4 {[%emt 0:04:37]} Nh5 {[%emt 0:07:07]} 12. Qxd8 {[%emt 0:03:40]} Rxd8 {[%emt 0:00:06]} 13. e4 {[%emt 0:00:47]} d6 {[%emt 0:06:37]} 14. Rd1 {[%emt 0:02:10]} Nf6 {[%emt 0:06:44]} 15. Na4 {[%emt 0:03:08]} b5 {[%emt 0:03:12]} 16. e5 {[%emt 0:02:28]} Nd5 {[%emt 0:00:19]} 17. Bg5 {[%emt 0:04:53]} Re8 {[%emt 0:01:48]} 18. c4 {[%emt 0:07:14]} bxa4 {[%emt 0:10:59]} 19. cxd5 {[%emt 0:01:15]} dxe5 {[%emt 0:00:07]} 20. d6 {[%emt 0:01:04]} e4 {[%emt 0:07:09]} 21. Bxe4 {[%emt 0:00:41]} Ra7 {[%emt 0:00:03]} 22. Be3 {[%emt 0:00:18]} Rd7 {[%emt 0:00:04]} 23. Bc6 {[%emt 0:00:10]} Red8 {[%emt 0:00:02]} 24. Bxd7 {[%emt 0:02:21]} Bxd7 {[%emt 0:00:07]} 25. Bb6 {[%emt 0:00:46]} Rb8 {[%emt 0:00:20]} 26. Bxa5 {[%emt 0:00:10]} Rb3 {[%emt 0:00:13]} 27. Rbc1 {[%emt 0:01:17]} Kf8 {[%emt 0:01:38]} 28. Rc7 {[%emt 0:00:46]} Ke8 {[%emt 0:00:03]} 29. Ra7 {[%emt 0:00:18]} Rb8 {[%emt 0:00:22]} 30. Rc1 {[%emt 0:00:48]} Bd4 {[%emt 0:00:23]} 31. Ra6 {[%emt 0:58:55]} Bb5 {[%emt 0:00:22]} 32. Bc7 {[%emt 0:00:00]} Bxb2 {[%emt 0:00:06]} 33. Bxb8 {[%emt 0:00:00]} Bxa6 {[%emt 0:00:56]} 34. Rc6 {[%emt 0:00:00]} Bd3 {[%emt 0:00:05]} 35. Rc8+ {[%emt 0:00:00]} Kd7 {[%emt 0:00:03]} 36. Rc7+ {[%emt 0:00:00]} Kd8 {[%emt 0:00:03]} 37. Ra7 {[%emt 0:00:00]} Bc2 {[%emt 0:01:01]} 38. d7 {[%emt 0:00:00]} Bxa3 {[%emt 0:00:21]} 39. Be5 {[%emt 0:00:00]} Be7 {[%emt 0:00:04]} 40. Bd4 {[%emt 0:00:00]} 1-0

[Event "1st Sakatam Open 2024"]
[Site "Guwahati"]
[Date "2024.03.28"]
[Round "10.1"]
[White "Singh, Y. Dhanabir"]
[Black "Kumar, Gaurav"]
[Result "0-1"]
[ECO "B21"]
[WhiteElo "1996"]
[BlackElo "2049"]
[Annotator "RC"]
[PlyCount "83"]
[EventDate "2024.03.24"]
[EventType "swiss"]
[EventCountry "IND"]
[SourceTitle "playchess.com"]
[Source "ChessBase"]
[SourceQuality "1"]
[TimeControl "5400+30"]

1. e4 {[%emt 0:00:05]} c5 {[%emt 0:03:33]} 2. f4 {[%emt 0:00:35]} d5 {[%emt 0:00:32]} 3. exd5 {[%emt 0:00:10]} Nf6 {[%emt 0:00:46]} 4. Bb5+ {[%emt 0:00:38]} Nbd7 {[%emt 0:00:40]} 5. Nc3 {[%emt 0:06:10]} a6 {[%emt 0:00:17]} 6. Bxd7+ {[%emt 0:03:44]} Qxd7 {[%emt 0:00:32]} 7. Nf3 {[%emt 0:00:03]} Nxd5 {[%emt 0:00:23]} 8. Ne5 {[%emt 0:00:19]} Nxc3 {[%emt 0:00:32]} 9. bxc3 {[%emt 0:00:09]} Qc7 {[%emt 0:00:23]} 10. c4 {[%emt 0:02:02]} f6 {[%emt 0:01:53]} 11. Nd3 {[%emt 0:06:25]} Be6 {[%emt 0:05:36]} 12. Qh5+ {[%emt 0:12:15]} Bf7 {[%emt 0:01:01]} 13. Qxc5 {[%emt 0:00:10]} Qxc5 {[%emt 0:09:12]} 14. Nxc5 {[%emt 0:01:21]} Bxc4 {[%emt 0:04:38]} 15. Nxb7 {[%emt 0:12:16]} Rc8 {[%emt 0:38:59]} 16. c3 {[%emt 0:22:38]} Bd5 {[%emt 0:02:17]} 17. Na5 {[%emt 0:02:25]} Bxg2 {[%emt 0:00:17]} 18. Rg1 {[%emt 0:00:05]} Bd5 {[%emt 0:01:27]} 19. Ba3 {[%emt 0:00:23]} Kf7 {[%emt 0:07:42]} 20. Bb4 {[%emt 0:01:21]} e5 {[%emt 0:01:29]} 21. Bxf8 {[%emt 0:21:59]} Rhxf8 {[%emt 0:00:06]} 22. f5 {[%emt 0:02:39]} Rc5 {[%emt 0:06:42]} 23. Nb3 {[%emt 0:00:26]} Rc4 {[%emt 0:00:09]} 24. Rf1 {[%emt 0:00:44]} Ra4 {[%emt 0:08:25]} 25. Ke2 {[%emt 0:01:50]} Rd8 {[%emt 0:01:46]} 26. Nc5 {[%emt 0:01:15]} Ra5 {[%emt 0:01:05]} 27. Nb3 {[%emt 0:00:55]} Bc4+ {[%emt 0:00:15]} 28. Ke3 {[%emt 0:00:31]} Rad5 {[%emt 0:01:44]} 29. d4 {[%emt 0:00:23]} Bxf1 {[%emt 0:01:25]} 30. Rxf1 {[%emt 0:00:02]} g6 {[%emt 0:00:19]} 31. Kd3 {[%emt 0:01:07]} exd4 {[%emt 0:00:52]} 32. fxg6+ {[%emt 0:00:01]} hxg6 {[%emt 0:00:10]} 33. Nxd4 {[%emt 0:00:03]} Rh5 {[%emt 0:00:39]} 34. Rf2 {[%emt 0:00:26]} Rh3+ {[%emt 0:00:45]} 35. Kc2 {[%emt 0:00:01]} Rc8 {[%emt 0:00:25]} 36. Ne2 {[%emt 0:00:21]} Rch8 {[%emt 0:00:12]} 37. Nf4 {[%emt 0:02:08]} Rxh2 {[%emt 0:00:08]} 38. Ng2 {[%emt 0:00:05]} R8h3 {[%emt 0:00:59]} 39. Rd2 {[%emt 0:00:27]} Rg3 {[%emt 0:00:09]} 40. Ne3 {[%emt 0:00:13]} Rxd2+ {[%emt 0:00:20]} 41. Kxd2 {[%emt 0:00:02]} Ke6 {[%emt 0:00:29]} 42. a4 {[%emt 0:00:17]} 0-1

[Event "1st Sakatam Open 2024"]
[Site "Guwahati"]
[Date "2024.03.28"]
[Round "10.2"]
[White "Kaustuv, Kundu"]
[Black "Srijon Saha"]
[Result "1-0"]
[ECO "A34"]
[WhiteElo "2388"]
[BlackElo "1812"]
[Annotator "RC"]
[PlyCount "63"]
[EventDate "2024.03.24"]
[EventType "swiss"]
[EventCountry "IND"]
[SourceTitle "playchess.com"]
[Source "ChessBase"]
[SourceQuality "1"]
[TimeControl "5400+30"]

1. Nf3 {[%emt 0:07:45]} Nf6 {[%emt 0:00:13]} 2. c4 {[%emt 0:00:07]} c5 {[%emt 0:00:42]} 3. Nc3 {[%emt 0:01:07]} Nc6 {[%emt 0:01:17]} 4. g3 {[%emt 0:00:23]} d5 {[%emt 0:00:16]} 5. cxd5 {[%emt 0:00:36]} Nxd5 {[%emt 0:00:02]} 6. Bg2 {[%emt 0:00:19]} e5 {[%emt 0:00:14]} 7. Nxe5 {[%emt 0:04:53]} Nxc3 {[%emt 0:01:57]} 8. Nxc6 {[%emt 0:03:25]} Nxd1 {[%emt 0:06:34]} 9. Nxd8 {[%emt 0:00:22]} Nxf2 {[%emt 0:07:08]} 10. Nxf7 {[%emt 0:00:54]} Nxh1 {[%emt 0:08:06]} 11. Nxh8 {[%emt 0:00:06]} Nxg3 {[%emt 0:00:07]} 12. hxg3 {[%emt 0:00:11]} Bd6 {[%emt 0:03:32]} 13. Kf2 {[%emt 0:02:30]} Be6 {[%emt 0:00:39]} 14. Bxb7 {[%emt 0:03:03]} Rb8 {[%emt 0:00:15]} 15. Be4 {[%emt 0:00:10]} Ke7 {[%emt 0:01:31]} 16. d3 {[%emt 0:00:37]} Rxh8 {[%emt 0:00:38]} 17. Be3 {[%emt 0:01:21]} Rc8 {[%emt 0:05:16]} 18. b3 {[%emt 0:02:49]} h6 {[%emt 0:00:22]} 19. Rc1 {[%emt 0:00:43]} g5 {[%emt 0:03:22]} 20. Kg2 {[%emt 1:09:09]} Bg4 {[%emt 0:00:46]} 21. Rh1 {[%emt 0:00:00]} Bxe2 {[%emt 0:11:30]} 22. Rxh6 {[%emt 0:00:00]} Rg8 {[%emt 0:00:48]} 23. Rh7+ {[%emt 0:00:00]} Ke6 {[%emt 0:00:11]} 24. Rxa7 {[%emt 0:00:00]} g4 {[%emt 0:00:23]} 25. Rh7 {[%emt 0:00:00]} Rf8 {[%emt 0:01:32]} 26. Rh6+ {[%emt 0:00:00]} Kd7 {[%emt 0:00:25]} 27. Bf4 {[%emt 0:00:00]} Bxf4 {[%emt 0:01:20]} 28. gxf4 {[%emt 0:00:00]} Rxf4 {[%emt 0:00:20]} 29. Rh5 {[%emt 0:00:00]} Kd6 {[%emt 0:10:08]} 30. Rd5+ {[%emt 0:00:00]} Ke6 {[%emt 0:00:01]} 31. Rxc5 {[%emt 0:00:00]} Rf1 {[%emt 0:00:15]} 32. Rc2 {[%emt 0:06:00]} 1-0